bitfinex/quotes_ETHUSD_20260308
["timestamp","ask_amount","ask_price","bid_price","bid_amount"]
[1773007798812,3.40570425,1930.0,1929.0,0.00153886]
[1773007799725,3.40570425,1930.0,1925.9,19.37749252]
[1773007799726,2.68264824,1929.3,1928.0,3.44870058]
[1773007799931,3.40570425,1929.8,1928.1,1.49811335]
[1773007800230,2.68264824,1929.3,1928.1,1.49811335]
[1773007800430,2.68264824,1929.0,1928.0,0.00153886]
[1773007800599,3.40570425,1929.5,1928.0,0.00153886]
[1773007800800,3.40570425,1929.9,1928.5,0.065536]
[1773007801000,2.68264824,1929.2,1929.0,0.0011]
[1773007801198,2.68264824,1929.2,1928.0,3.44870058]
[1773007801502,3.40570425,1929.5,1928.8,0.0011]
[1773007801702,2.68264824,1929.3,1928.8,0.0011]
[1773007801898,3.40570425,1929.5,1928.8,0.0011]
[1773007802099,2.68264824,1929.8,1928.8,0.0011]
[1773007802528,2.68264824,1930.2,1928.8,0.0011]
[1773007802918,2.68264824,1929.6,1928.8,0.0011]
[1773007803530,2.68264824,1929.3,1928.8,0.0011]
[1773007803732,2.68264824,1929.6,1928.8,0.0011]
[1773007803897,0.00153886,1930.0,1929.1,0.065536]
[1773007804102,0.00153886,1930.0,1929.2,0.065536]
[1773007804619,0.00153886,1930.0,1929.2,4.28239371]
[1773007804842,0.34937605,1931.3,1929.7,0.065536]
[1773007805012,0.01016282,1931.3,1929.9,4.21685771]
[1773007805216,0.00307772,1931.2,1930.2,0.065536]
[1773007805597,0.00307772,1931.1,1930.2,4.28239371]
[1773007805801,0.01016282,1931.3,1931.2,0.00307772]
[1773007806047,0.01016282,1931.3,1930.7,0.065536]
[1773007806338,0.001,1931.9,1930.7,0.065536]
[1773007806339,0.001,1931.9,1931.1,4.35402698]
[1773007806644,2.68264824,1931.8,1931.2,0.065536]
[1773007806937,0.001,1931.9,1931.2,0.065536]
[1773007808128,0.34124203,1932.9,1931.9,0.065536]
[1773007808629,0.00153886,1932.6,1931.9,0.065536]
[1773007808831,0.34124203,1932.9,1931.9,0.065536]
[1773007809018,0.00253886,1932.7,1931.9,4.41956298]
[1773007809218,0.00253886,1932.7,1932.2,0.065536]
[1773007809219,0.001,1932.7,1932.2,0.065536]
[1773007809424,0.001,1932.7,1932.3,0.065536]
[1773007810101,0.00153886,1932.7,1932.3,0.065536]
[1773007810302,0.00153886,1932.6,1932.3,0.065536]
[1773007810532,2.67931646,1933.3,1931.8,4.35402698]
[1773007810533,0.00153886,1932.9,1931.9,0.17170432]
[1773007810745,0.00153886,1932.9,1931.9,0.065536]
[1773007810934,0.00153886,1932.8,1931.9,4.41956298]
[1773007811132,0.00153886,1932.9,1931.9,0.065536]
[1773007811334,2.67931646,1932.7,1931.9,0.065536]
[1773007811536,2.67931646,1932.4,1931.0,4.46173416]
[1773007811744,0.00153886,1932.3,1931.1,0.065536]
[1773007811929,0.00153886,1932.6,1931.1,0.065536]
[1773007812570,6.87791277,1932.7,1931.0,0.00153886]
[1773007812571,2.67931646,1932.4,1931.0,0.00153886]
[1773007812852,2.68085532,1933.0,1929.0,0.00153886]
[1773007812853,2.67931646,1931.6,1930.2,4.35402698]
[1773007813016,4.19859631,1931.9,1929.4,1.467]
[1773007813017,0.00153886,1931.5,1929.8,4.35402698]
[1773007813216,2.67931646,1931.1,1929.8,4.35402698]
[1773007813718,2.67931646,1931.1,1929.9,0.065536]
[1773007813917,4.19859631,1931.4,1929.8,4.35402698]
[1773007813918,0.00153886,1931.0,1929.8,4.35402698]
[1773007814152,0.00153886,1931.3,1929.9,0.065536]
[1773007814732,0.00153886,1931.2,1930.0,4.35556584]
[1773007814971,2.67931646,1931.7,1930.3,0.065536]
[1773007815127,0.00153886,1931.6,1930.3,0.065536]
[1773007815659,0.00153886,1931.5,1930.3,0.065536]
[1773007815827,0.00153886,1931.6,1930.3,0.065536]
[1773007816154,2.68085532,1932.0,1931.1,0.065536]
[1773007816155,0.00153886,1932.0,1931.1,0.065536]
[1773007816455,2.67931646,1932.8,1931.2,0.065536]
[1773007817320,2.67931646,1932.5,1931.2,0.065536]
[1773007817528,4.54128116,1932.7,1931.2,0.065536]
[1773007817726,7.22065912,1932.7,1931.2,0.065536]
[1773007817942,7.22065912,1932.7,1931.0,0.00153886]
[1773007817943,0.34268485,1932.7,1931.5,4.35402698]
[1773007818120,0.00153886,1933.0,1931.7,4.41956298]
[1773007818328,0.00153886,1933.0,1932.0,0.065536]
[1773007818646,0.00153886,1933.0,1931.7,0.065536]
[1773007818647,0.00153886,1933.0,1932.2,0.065536]
[1773007819744,0.00153886,1933.0,1932.0,0.065536]
[1773007819940,0.00153886,1933.0,1932.2,0.065536]
[1773007820529,0.00153886,1933.0,1932.2,4.41956298]
[1773007821866,0.00153886,1934.0,1932.6,0.065536]
[1773007822040,0.50045922,1934.3,1933.0,4.35402698]
[1773007822228,0.50045922,1934.3,1932.3,0.5]
[1773007822229,0.1574301,1934.3,1933.4,0.065536]
[1773007822448,0.1574301,1934.3,1933.3,4.35402698]
[1773007822449,0.1574301,1934.3,1933.6,4.41956298]
[1773007822954,0.00153886,1935.0,1933.8,4.41956298]
[1773007823251,0.00153886,1935.0,1933.7,1.464]
[1773007823252,2.62324777,1935.8,1934.0,4.41956298]
[1773007823630,6.82184408,1935.8,1934.0,4.42110184]
[1773007824645,0.00153886,1936.0,1934.3,0.065536]
[1773007824838,0.2843805,1936.1,1934.6,0.065536]
[1773007825167,0.2843805,1936.1,1935.0,0.00153886]
[1773007826826,2.67937796,1935.9,1935.0,0.00153886]
[1773007827027,2.67937796,1935.3,1934.0,0.00153886]
[1773007828457,2.67937796,1935.0,1934.0,0.00153886]
[1773007828687,2.72170891,1935.7,1934.0,0.00153886]
[1773007828830,0.00153886,1936.0,1934.4,0.065536]
[1773007829174,2.67937796,1935.8,1934.4,0.065536]
[1773007829465,4.19859631,1935.7,1934.4,0.065536]
[1773007830444,4.20013517,1936.0,1934.3,0.065536]
[1773007830929,2.67937796,1935.2,1934.3,0.065536]
[1773007831130,2.67937796,1934.6,1933.2,4.35402698]
[1773007831373,2.67937796,1934.6,1932.9,2.55431231]
[1773007831374,2.67937796,1934.3,1932.9,2.55431231]
[1773007831666,8.03813388,1935.0,1930.1,1.54151605]
[1773007831667,2.67937796,1934.0,1932.2,5.82502698]
[1773007831829,6.87797427,1934.0,1932.2,5.82502698]
[1773007832031,2.67937796,1934.3,1932.3,0.17170432]
[1773007832226,4.19859631,1934.5,1932.7,0.065536]
[1773007832472,4.19859631,1934.5,1932.6,4.35402698]
[1773007832668,4.19859631,1934.5,1932.6,5.82502698]
[1773007832669,2.67937796,1934.3,1932.6,5.82502698]
[1773007832831,7.59553871,1934.3,1932.6,5.82502698]
[1773007833034,2.67937796,1934.0,1932.6,1.471]
[1773007833345,4.91616075,1934.7,1932.5,4.5965829]
[1773007833648,4.91616075,1934.7,1932.6,0.065536]
[1773007833829,0.00153886,1935.0,1933.0,4.49195344]
[1773007834029,0.00153886,1935.0,1933.3,0.065536]
[1773007834232,0.00153886,1935.0,1933.3,4.6621189]
[1773007835270,0.00153886,1935.0,1933.3,6.1261189]
[1773007835479,0.00153886,1935.0,1933.5,0.065536]
[1773007835787,4.91769961,1935.0,1933.5,0.065536]
[1773007836073,2.67937796,1934.7,1933.5,0.065536]
[1773007836372,2.67937796,1934.1,1932.4,4.49041458]
[1773007836573,4.91616075,1934.3,1932.5,0.065536]
[1773007837664,4.91616075,1934.8,1932.5,0.17170432]
[1773007837968,4.91616075,1934.8,1933.1,4.55595058]
[1773007838129,4.91616075,1934.8,1933.1,4.55705058]
[1773007838327,2.63091682,1935.2,1933.1,4.55705058]
[1773007838658,2.58091682,1935.2,1934.0,0.00153886]
[1773007839058,7.49707757,1935.2,1934.0,0.00153886]
[1773007839264,2.67937796,1935.0,1933.3,0.065536]
[1773007839435,2.67937796,1934.4,1933.3,0.065536]
[1773007840331,2.67937796,1934.4,1933.1,0.0011]
[1773007840536,4.91616075,1935.5,1933.3,0.065536]
[1773007840753,7.59553871,1935.3,1934.0,0.00153886]
[1773007840953,2.67937796,1934.7,1934.0,0.00153886]
[1773007841155,2.67937796,1934.4,1933.1,0.0011]
[1773007841571,2.67937796,1934.1,1933.1,0.0011]
[1773007841939,4.91616075,1934.4,1933.1,0.0011]
[1773007842069,4.91616075,1934.4,1933.0,0.0011]
[1773007842070,7.59553871,1934.4,1933.0,0.0011]
[1773007842397,0.00153886,1934.0,1932.5,1.465]
[1773007842754,0.00153886,1934.0,1932.4,4.49041458]
[1773007842981,2.67937796,1933.8,1932.0,0.10770718]
[1773007843296,2.67937796,1933.8,1932.0,0.17324318]
[1773007843713,5.06564574,1933.7,1932.0,0.10770718]
[1773007843859,4.91616075,1933.4,1932.0,0.00153886]
[1773007844184,2.67937796,1932.9,1932.0,0.00153886]
[1773007844558,7.59553871,1933.2,1932.0,0.00153886]
[1773007845963,2.67937796,1932.6,1932.0,0.00153886]
[1773007846398,4.91616075,1932.8,1932.0,0.00153886]
[1773007846685,0.14948499,1933.1,1932.0,0.00153886]
[1773007846864,2.67937796,1932.9,1932.0,0.00153886]
[1773007847460,7.59553871,1932.9,1932.0,0.00153886]
[1773007847660,4.91616075,1932.8,1932.0,0.00153886]
[1773007847976,2.67937796,1932.6,1932.0,0.00153886]
[1773007848210,2.67937796,1932.3,1931.8,0.0011]
[1773007848376,2.67937796,1932.3,1931.5,0.0011]
[1773007848893,2.67937796,1932.0,1930.9,0.065536]
[1773007849392,2.67937796,1931.7,1930.3,4.49041458]
[1773007849761,2.67937796,1931.7,1930.4,0.065536]
[1773007849989,7.59553871,1932.0,1930.4,0.065536]
[1773007850192,4.91616075,1931.9,1930.3,4.49041458]
[1773007850367,4.91616075,1931.9,1930.4,0.065536]
[1773007850569,4.91616075,1931.9,1931.8,0.0011]
[1773007850869,4.91616075,1932.4,1930.8,0.065536]
[1773007851069,4.91616075,1932.4,1931.7,0.0011]
[1773007851383,2.67937796,1932.3,1931.7,0.0011]
[1773007852090,2.67937796,1932.0,1931.5,0.0011]
[1773007852291,2.67937796,1931.7,1930.2,4.6621189]
[1773007853306,4.91616075,1932.0,1930.2,4.6621189]
[1773007853605,7.59553871,1932.0,1930.2,4.6621189]
[1773007853907,4.91616075,1932.5,1930.7,0.065536]
[1773007854277,4.91616075,1932.9,1931.1,0.065536]
[1773007854472,4.91616075,1932.5,1930.5,7.49641458]
[1773007854890,0.00153886,1932.0,1930.6,4.49041458]
[1773007856078,7.59707757,1932.0,1930.3,0.10616832]
[1773007856609,4.91616075,1931.9,1930.2,0.065536]
[1773007857185,2.67937796,1931.7,1930.2,0.065536]
[1773007859107,4.91616075,1931.9,1930.2,4.55595058]
[1773007859912,2.67937796,1931.4,1930.2,0.065536]
[1773007860302,2.67937796,1931.4,1930.0,0.00153886]
[1773007860303,7.59553871,1931.4,1930.0,0.00153886]
[1773007860520,4.91616075,1931.0,1930.0,0.00153886]
[1773007861623,4.91616075,1931.4,1930.0,0.00153886]
[1773007862929,4.91616075,1931.4,1930.3,0.0011]
[1773007864221,7.53160615,1931.9,1930.3,0.0011]
[1773007864813,4.89860432,1931.9,1930.5,0.065536]
[1773007864990,2.67937796,1931.3,1929.4,5.20247027]
[1773007865195,8.03967274,1932.0,1928.3,5.20247027]
[1773007865196,4.89860432,1930.0,1928.3,5.20247027]
[1773007865420,2.67937796,1930.3,1928.3,5.20247027]
[1773007865626,4.89860432,1930.5,1928.3,5.20247027]
[1773007865994,4.89860432,1930.5,1928.7,5.04184007]
[1773007866195,5.21441733,1931.0,1929.1,5.04184007]
[1773007866425,5.21441733,1931.0,1928.6,5.04294007]
[1773007866426,5.21287847,1930.6,1928.6,5.04294007]
[1773007866726,5.21287847,1930.6,1928.8,1.4461]
[1773007866892,5.21287847,1930.6,1928.8,0.0011]
[1773007867552,7.89225643,1930.6,1929.1,0.065536]
[1773007868853,5.21287847,1930.5,1929.1,0.065536]
[1773007869055,5.21287847,1930.5,1929.0,0.00153886]
[1773007869355,2.67937796,1930.3,1929.0,0.00153886]
[1773007869553,7.89225643,1930.3,1929.0,0.00153886]
[1773007870256,5.21287847,1930.7,1929.1,0.065536]
[1773007871734,5.21287847,1930.7,1929.2,5.10737607]
[1773007872953,5.21287847,1930.7,1929.2,5.05737607]
[1773007873469,5.21287847,1930.7,1929.2,5.04184007]
[1773007873772,0.00153886,1931.0,1929.2,5.04184007]
[1773007874840,0.00153886,1931.0,1929.4,5.04184007]
[1773007875045,0.00153886,1931.0,1929.8,0.065536]
[1773007875962,0.00153886,1931.0,1929.8,5.10737607]
[1773007876372,0.00153886,1931.0,1929.8,0.065536]
[1773007876573,0.00153886,1931.0,1929.4,5.10737607]
[1773007876897,0.00153886,1931.0,1929.4,0.065536]
[1773007876898,5.21287847,1930.7,1929.4,0.065536]
[1773007877674,5.21287847,1930.7,1929.2,0.0011]
[1773007877675,5.21287847,1930.7,1929.3,0.065536]
[1773007878882,5.21287847,1930.7,1929.2,0.0011]
[1773007881677,5.21287847,1930.0,1929.2,0.0011]
[1773007881874,0.14948499,1930.7,1929.0,0.00263886]
[1773007881875,5.21287847,1929.8,1929.0,0.00263886]
[1773007882079,0.14948499,1930.4,1929.0,0.00263886]
[1773007882080,5.21287847,1930.2,1929.0,0.00263886]
[1773007882387,2.68447717,1929.1,1928.0,0.00153886]
[1773007882548,8.05343151,1930.0,1926.8,5.98359521]
[1773007882549,5.21287847,1928.7,1926.8,5.98359521]
[1773007882976,5.21287847,1928.7,1927.0,5.04337893]
[1773007883146,0.00153886,1929.0,1927.3,5.04184007]
[1773007883471,0.00153886,1929.0,1927.4,5.10737607]
[1773007883675,5.21441733,1929.0,1927.0,0.00153886]
[1773007883973,0.00153886,1929.0,1927.2,5.04184007]
[1773007884177,0.00153886,1929.0,1927.7,5.10737607]
[1773007884472,0.00153886,1929.0,1928.4,5.10737607]
[1773007884673,0.00153886,1930.0,1928.4,5.10737607]
[1773007885245,0.00153886,1930.0,1928.6,5.10737607]
[1773007887762,0.00153886,1930.0,1928.7,0.0011]
[1773007888266,0.00153886,1930.0,1929.1,0.065536]
[1773007888490,0.001,1930.6,1929.1,0.065536]
[1773007888491,0.001,1930.6,1929.1,5.10737607]
[1773007888788,5.15387847,1930.7,1929.1,5.10737607]
[1773007888960,2.58623712,1930.9,1929.1,5.10737607]
[1773007889158,0.00153886,1931.0,1929.1,5.10737607]
[1773007889364,0.00153886,1931.0,1929.6,0.065536]
[1773007889689,5.21441733,1931.0,1929.6,0.065536]
[1773007890705,5.21441733,1931.0,1929.2,0.065536]
[1773007890903,5.21287847,1930.7,1929.3,1.411]
[1773007891062,5.21287847,1930.7,1929.4,0.065536]
[1773007892093,0.00153886,1931.0,1929.4,5.10737607]
[1773007892795,0.00153886,1931.0,1930.2,0.065536]
[1773007893093,0.00153886,1931.0,1930.2,5.22773004]
[1773007893297,0.00153886,1931.0,1930.1,1.73558876]
[1773007893298,0.001,1931.3,1930.7,0.065536]
[1773007893497,5.45157892,1932.3,1930.9,0.065536]
[1773007893670,5.45157892,1932.8,1930.9,5.22773004]
[1773007893869,5.45157892,1932.8,1931.4,0.065536]
[1773007894895,5.45157892,1932.8,1931.6,0.065536]
[1773007896093,2.68447717,1932.8,1931.4,0.065536]
[1773007896301,2.68447717,1932.8,1931.0,0.00153886]
[1773007896302,5.45157892,1932.1,1931.0,0.00153886]
[1773007898772,0.001,1932.2,1931.0,0.00153886]
[1773007899400,0.001,1932.2,1931.1,0.065536]
[1773007899904,5.45257892,1932.2,1931.1,0.065536]
[1773007900578,5.45257892,1932.2,1931.0,0.00153886]
[1773007900788,0.001,1932.0,1931.0,0.00153886]
[1773007902508,5.45257892,1932.0,1931.0,0.00153886]
[1773007903084,5.45157892,1931.7,1930.8,0.0011]
[1773007903307,5.45157892,1931.6,1930.7,0.0011]
[1773007905915,2.65507653,1931.8,1930.7,0.0011]
[1773007905916,2.59507653,1931.8,1930.7,0.0011]
[1773007906413,5.45157892,1931.3,1930.7,0.0011]
[1773007906779,5.45157892,1931.7,1930.7,0.0011]
[1773007907412,5.45157892,1931.5,1930.7,0.0011]
[1773007908216,5.45157892,1931.5,1930.5,0.0011]
[1773007908409,2.68447717,1931.6,1930.5,0.0011]
[1773007908410,5.45157892,1931.2,1930.5,0.0011]
[1773007910919,5.45157892,1931.2,1930.0,0.00153886]
[1773007911099,5.45157892,1930.9,1930.0,0.00153886]
[1773007911716,5.45157892,1931.4,1930.0,0.00153886]
[1773007912085,5.45157892,1931.1,1930.0,0.00153886]
[1773007913019,5.45157892,1931.1,1930.1,0.0011]
[1773007913198,5.45157892,1930.8,1930.1,0.0011]
[1773007915189,5.39257892,1931.2,1930.1,0.0011]
[1773007915623,2.59507653,1931.8,1930.3,0.065536]
[1773007915624,5.45157892,1931.7,1930.3,0.065536]
[1773007916630,8.13605609,1931.6,1930.3,0.065536]
[1773007917495,2.68447717,1931.6,1930.3,0.065536]
[1773007917714,5.45157892,1931.5,1930.2,0.065536]
[1773007919925,5.45157892,1931.5,1930.1,0.066636]
[1773007919926,5.45157892,1931.1,1930.1,0.066636]
[1773007920137,0.14948499,1931.4,1930.0,1.38663886]
[1773007920138,2.68447717,1930.3,1930.0,0.00263886]
[1773007920343,5.45157892,1930.4,1929.8,0.0011]
[1773007920638,5.45157892,1930.4,1930.2,0.38699221]
[1773007920793,5.45157892,1930.4,1929.8,0.0011]
[1773007920999,5.45157892,1930.1,1928.5,5.16329404]
[1773007921198,5.45157892,1929.8,1928.5,0.0011]
[1773007922124,5.45157892,1929.8,1929.2,0.065536]
[1773007922422,5.45157892,1929.8,1928.5,0.0011]
[1773007922625,5.39157892,1929.8,1929.2,0.065536]
[1773007922825,5.45157892,1930.2,1929.2,0.065536]
[1773007923216,5.27744828,1930.6,1929.2,0.065536]
[1773007923417,2.68447717,1930.2,1929.2,0.065536]
[1773007923620,2.68447717,1930.1,1929.2,0.065536]
[1773007923800,5.27744828,1930.0,1929.2,0.065536]
[1773007924111,2.68447717,1930.8,1928.7,0.0011]
[1773007924112,5.27744828,1929.7,1928.7,0.0011]
[1773007924624,5.27744828,1929.7,1929.2,0.065536]
[1773007924820,5.42693327,1929.6,1929.1,0.9481441]
[1773007925027,5.42693327,1929.6,1928.7,0.0011]
[1773007925028,5.27744828,1929.4,1928.7,0.0011]
[1773007925339,5.27898714,1930.0,1928.7,0.0011]
[1773007925509,5.27898714,1930.0,1928.2,1.33715615]
[1773007925510,5.27898714,1930.0,1925.5,0.0011]
[1773007925715,5.27744828,1926.8,1925.5,0.0011]
[1773007925916,13.42392471,1929.0,1925.5,5.13481539]
[1773007925917,8.20772506,1927.3,1925.5,5.13481539]
[1773007926135,2.68447717,1927.7,1925.5,5.13481539]
[1773007926299,5.52324789,1927.8,1925.5,5.13481539]
[1773007926300,0.00153886,1927.0,1925.5,5.13481539]
[1773007926509,0.00153886,1927.0,1925.7,5.13371539]
[1773007927054,0.00153886,1927.0,1926.2,5.19925139]
[1773007927607,0.00153886,1927.0,1926.3,0.065536]
[1773007927804,0.00153886,1928.0,1926.5,0.065536]
[1773007928130,8.20772506,1927.8,1926.3,0.065536]
[1773007928338,8.20772506,1927.8,1926.0,0.00153886]
[1773007928339,2.68447717,1927.2,1926.0,0.00153886]
[1773007928543,5.52324789,1927.1,1926.0,0.00153886]
[1773007928899,2.68447717,1926.9,1926.0,0.00153886]
[1773007929136,5.52324789,1927.1,1926.0,0.00153886]
[1773007929603,5.52324789,1927.1,1926.1,0.065536]
[1773007929807,5.52324789,1927.1,1926.0,0.00153886]
[1773007930427,5.52324789,1927.2,1926.0,0.00153886]
[1773007931848,5.52324789,1926.9,1925.5,0.0011]
[1773007932021,2.68447717,1926.7,1925.5,0.0011]
[1773007932423,5.52324789,1926.6,1925.5,0.0011]
[1773007933038,2.68447717,1926.4,1925.5,0.0011]
[1773007933245,8.05497037,1927.0,1925.3,0.0011]
[1773007933246,5.52324789,1926.3,1925.3,0.0011]
[1773007933450,8.20772506,1926.3,1925.3,0.0011]
[1773007933749,5.52324789,1926.2,1925.3,0.0011]
[1773007935254,8.20772506,1926.2,1925.3,0.0011]
[1773007935450,2.68447717,1925.5,1925.1,0.0011]
[1773007935626,2.68447717,1925.5,1924.6,0.003]
[1773007935949,2.68447717,1925.8,1924.6,0.003]
[1773007936256,0.15102385,1926.0,1924.6,0.003]
[1773007936257,0.00153886,1926.0,1924.6,5.30841971]
[1773007938454,0.00153886,1926.0,1925.5,0.0011]
[1773007938831,2.68447717,1926.7,1925.5,0.0011]
[1773007939653,5.52324789,1926.8,1925.5,0.0011]
[1773007940228,2.68601603,1927.0,1924.1,5.13371539]
[1773007940229,8.20772506,1925.7,1924.1,5.13371539]
[1773007940637,8.20772506,1925.7,1924.3,0.10616832]
[1773007941028,2.68601603,1926.0,1924.5,0.26359842]
[1773007941759,0.00153886,1926.0,1924.5,0.26359842]
[1773007942260,0.00153886,1926.0,1922.9,1.39]
[1773007942261,2.69774637,1925.7,1924.0,5.13525425]
[1773007942431,2.69774637,1925.7,1924.1,0.17170432]
[1773007942930,8.22099426,1925.7,1924.1,0.17170432]
[1773007943130,5.52324789,1925.6,1924.1,0.17170432]
[1773007943329,2.69774637,1925.4,1924.1,0.17170432]
[1773007943530,5.52324789,1925.6,1924.1,0.17170432]
[1773007944257,5.46324789,1925.6,1924.1,0.17170432]
[1773007944427,5.46324789,1925.6,1924.2,0.17170432]
[1773007944831,0.14948499,1925.8,1924.2,5.30541971]
[1773007945244,8.22253312,1926.0,1924.2,5.30541971]
[1773007945425,2.69774637,1925.7,1924.2,5.30541971]
[1773007945631,5.67273288,1925.9,1924.2,5.30541971]
[1773007945849,5.52324789,1925.6,1924.2,0.17170432]
[1773007946048,0.14948499,1924.9,1924.0,0.00153886]
[1773007946250,0.14948499,1925.0,1924.0,0.00153886]
[1773007946543,5.52324789,1925.1,1924.0,0.00153886]
[1773007946851,5.67273288,1925.0,1924.0,0.00153886]
[1773007947252,5.52324789,1924.8,1924.0,0.00153886]
[1773007947453,0.14948499,1924.7,1924.0,0.00153886]
[1773007947652,5.67273288,1924.7,1923.5,0.0011]
[1773007947865,5.52324789,1924.6,1923.5,0.0011]
[1773007948255,0.14948499,1924.3,1923.5,0.0011]
[1773007948787,5.67273288,1924.0,1923.5,0.0011]
[1773007949083,5.67273288,1924.0,1923.3,0.0011]
[1773007949236,5.67273288,1924.0,1922.1,7.30772624]
[1773007949237,5.67273288,1923.7,1922.1,7.30772624]
[1773007949644,5.67273288,1923.4,1921.9,1.74603293]
[1773007949839,5.67273288,1923.4,1921.7,5.13371539]
[1773007950074,0.14948499,1923.1,1921.7,5.13371539]
[1773007950235,0.08948499,1923.3,1921.7,5.13371539]
[1773007950668,5.52324789,1923.9,1922.1,0.17170432]
[1773007950879,5.52324789,1923.9,1922.1,5.24098371]
[1773007951081,5.52324789,1923.9,1922.4,0.065536]
[1773007951384,8.22099426,1923.9,1922.4,0.065536]
[1773007951737,0.00153886,1924.0,1922.4,0.065536]
[1773007951738,8.22099426,1923.6,1922.4,0.065536]
[1773007951972,5.52324789,1923.5,1922.4,0.065536]
[1773007952343,0.14948499,1923.4,1922.1,0.17280432]
[1773007952547,5.67273288,1923.4,1922.1,0.17280432]
[1773007952780,5.67273288,1923.4,1922.1,0.0011]
[1773007953278,2.69774637,1923.0,1922.1,0.0011]
[1773007953442,0.14948499,1922.9,1922.1,0.0011]
[1773007953642,2.69774637,1922.7,1922.0,0.46302717]
[1773007953837,2.85756775,1925.1,1921.6,0.0011]
[1773007953838,5.19580078,1922.3,1921.6,0.0011]
[1773007954044,8.09477797,1923.0,1920.4,2.2090601]
[1773007954045,0.14948499,1922.0,1920.4,2.2090601]
[1773007954242,5.19580078,1922.0,1920.4,2.2090601]
[1773007954472,0.14948499,1922.2,1920.4,2.2090601]
[1773007954675,0.14948499,1922.1,1920.4,2.2090601]
[1773007954877,5.19580078,1922.6,1920.8,0.17170432]
[1773007955078,0.14948499,1922.5,1920.8,0.17170432]
[1773007955380,5.34528577,1922.5,1920.8,0.17170432]
[1773007955874,7.89354715,1922.3,1920.9,5.2053511]
[1773007956045,1.456,1923.3,1921.1,5.40799426]
[1773007956245,1.456,1923.3,1921.6,5.40799426]
[1773007956246,0.14948499,1923.0,1921.6,5.40799426]
[1773007956446,2.69774637,1923.4,1922.0,0.00153886]
[1773007956646,2.69774637,1923.1,1922.0,0.00153886]
[1773007956881,2.69774637,1923.7,1922.1,5.40799426]
[1773007957179,5.59880464,1924.0,1922.5,0.065536]
[1773007957360,0.00153886,1924.0,1922.7,0.065536]
[1773007957562,2.69928523,1924.0,1922.7,0.065536]
[1773007958068,0.00153886,1924.0,1922.7,5.47353026]
[1773007959049,0.00153886,1924.0,1922.1,2.48774751]
[1773007959050,0.00153886,1924.0,1923.6,0.065536]
[1773007959756,0.00153886,1924.0,1923.1,5.40799426]
[1773007961779,0.00153886,1924.0,1923.2,0.065536]
[1773007963156,0.001,1923.9,1923.2,0.065536]
[1773007963358,0.001,1923.9,1923.1,3.47353026]
[1773007963682,2.69774637,1925.5,1923.3,5.40799426]
[1773007964178,0.14948499,1925.4,1923.3,5.40799426]
[1773007964384,2.69774637,1925.5,1923.3,5.40799426]
[1773007964848,2.69774637,1925.2,1923.3,5.40799426]
[1773007965554,2.69774637,1925.2,1923.8,0.065536]
[1773007965888,0.14948499,1925.1,1923.8,0.065536]
[1773007966091,0.14948499,1925.1,1923.0,0.00153886]
[1773007966092,2.69774637,1924.1,1923.0,0.00153886]
[1773007966379,2.84723136,1924.4,1923.0,0.00153886]
[1773007966554,2.84723136,1924.4,1923.0,5.40953312]
[1773007966757,0.14948499,1924.6,1923.0,5.40953312]
[1773007967099,0.14948499,1924.3,1923.0,5.40953312]
[1773007967280,0.14948499,1924.0,1923.0,0.00153886]
[1773007967781,7.89354715,1924.1,1923.0,0.00153886]
[1773007967782,0.14948499,1923.7,1923.0,0.00153886]
[1773007967986,0.14948499,1923.7,1922.0,0.00153886]
[1773007967987,0.14948499,1923.7,1922.0,5.40953312]
[1773007968283,0.15102385,1924.0,1922.2,5.40799426]
[1773007968487,0.14948499,1923.7,1922.2,5.40799426]
[1773007968781,0.14948499,1923.7,1922.3,5.47353026]
[1773007968981,0.15102385,1924.0,1922.3,5.47353026]
[1773007969787,0.00153886,1924.0,1922.3,5.47353026]
[1773007970257,0.00153886,1924.0,1923.4,0.065536]
[1773007972067,0.00153886,1924.0,1923.4,5.40799426]
[1773007972273,0.00153886,1924.0,1923.5,0.065536]
[1773007973300,0.00153886,1924.0,1923.1,0.065536]
[1773007973883,0.15102385,1924.0,1923.1,0.065536]
[1773007974465,0.00153886,1924.0,1923.0,5.47353026]
[1773007974670,0.00153886,1924.0,1923.2,5.47353026]
[1773007975560,0.15048499,1923.9,1922.4,5.40799426]
[1773007975780,2.69774637,1923.2,1922.3,0.0011]
[1773007975956,0.14948499,1923.1,1922.3,0.0011]
[1773007976569,2.69774637,1923.5,1922.3,0.0011]
[1773007976764,0.14948499,1923.4,1922.3,0.0011]
[1773007978092,5.19680078,1923.9,1921.5,0.0011]
[1773007978093,2.69774637,1922.6,1921.5,5.40909426]
[1773007978278,2.69774637,1922.9,1921.5,5.40909426]
[1773007978478,0.14948499,1923.0,1921.5,5.40909426]
[1773007978986,0.15102385,1923.0,1921.5,5.40909426]
[1773007979201,0.00153886,1923.0,1921.6,5.40799426]
[1773007979361,0.00153886,1923.0,1921.7,5.40909426]
[1773007980288,0.00153886,1923.0,1921.8,5.47353026]
[1773007981288,0.00153886,1923.0,1922.3,5.40799426]
[1773007981495,0.00153886,1923.0,1922.4,0.065536]
[1773007981866,0.00153886,1923.0,1922.4,5.47353026]
[1773007984098,0.00153886,1923.0,1921.7,0.0011]
[1773007984099,0.00153886,1923.0,1921.7,5.65480179]
[1773007986182,0.00153886,1923.0,1922.4,0.065536]
[1773007986980,0.34275506,1923.8,1922.4,5.76120638]
[1773007987565,0.34275506,1923.8,1922.9,5.76120638]
[1773007987799,0.34275506,1923.8,1922.5,0.0011]
[1773007987800,0.00153886,1924.0,1923.1,5.76120638]
[1773007988477,0.00153886,1924.0,1923.6,0.065536]
[1773007988785,0.00153886,1925.0,1923.6,5.76120638]
[1773007992501,0.34458287,1925.4,1923.9,5.69567038]
[1773007992502,0.28612173,1925.4,1923.9,5.69567038]
[1773007992705,0.28612173,1925.4,1923.2,1.366]
[1773007992706,0.28612173,1925.4,1924.4,0.065536]
[1773007993199,5.40685651,1925.9,1924.4,5.76120638]
[1773007993200,0.001,1925.9,1924.4,5.76120638]
[1773007994010,0.00153886,1926.0,1925.4,5.76120638]
[1773007994211,5.75327205,1927.2,1925.4,7.11920638]
[1773007994372,0.3453007,1927.2,1925.4,7.11920638]
[1773007994571,0.28683956,1927.2,1925.9,0.065536]
[1773007994806,8.10994062,1927.7,1925.9,0.065536]
[1773007995114,5.41219425,1927.7,1925.9,5.76120638]
[1773007995299,0.00153886,1928.0,1926.5,5.76120638]
[1773007995495,2.69774637,1927.9,1926.5,5.76120638]
[1773007995703,0.00153886,1928.0,1926.5,5.76120638]
[1773007995915,0.00153886,1928.0,1926.5,7.11720638]
[1773007998394,0.34711646,1927.9,1926.5,7.11720638]
[1773007998594,0.00153886,1928.0,1926.5,7.11720638]